[Event "Julius Baer Generation Cup Prelims 2022"]
[Site "Online"]
[Date "2022.09.14"]
[Round "5.7"]
[White "Carlsen, Magnus"]
[Black "Navara, David"]
[Result "1/2-1/2"]
[ECO "D35"]
[WhiteElo "2861"]
[BlackElo "2681"]
[Annotator "TA"]
[PlyCount "134"]
[EventDate "2022.09.12"]
[EventType "tourn"]
[EventCountry "NET"]
[SourceTitle "playchess.com"]
[Source "ChessBase"]
[SourceQuality "1"]
[TimeControl "900+10"]

{[%evp 15,134,23,21,18,18,16,24,4,8,5,14,11,24,0,0,0,6,0,0,0,0,0,9,0,0,0,30,30,33,28,40,29,34,27,36,32,31,30,35,0,0,0,42,38,98,105,103,104,106,106,106,106,108,108,112,105,136,105,97,94,91,80,128,113,135,135,135,135,135,135,145,145,462,441,418,145,145,88,88,88,88,88,128,0,88,88,88,88,88,80,80,80,80,80,80,80,80,80,80,80,88,88,88,88,88,80,88,88,88,88,88,80,88,0,80,80,80,80,88,80,80]} 1. d4 {[%emt 0:00:00]} Nf6 {[%emt 0:00:00]} 2. c4 {[%emt 0:00:03]} e6 {[%emt 0:00:02]} 3. Nf3 {[%emt 0:00:02]} d5 {[%emt 0:00:01]} 4. cxd5 {[%emt 0:00:01]} exd5 {[%emt 0:00:01]} 5. Nc3 {[%emt 0:00:00]} c6 {[%emt 0:00:57]} 6. Bf4 {[%emt 0:00:02]} Bf5 {[%emt 0:01:53]} 7. e3 {[%emt 0:00:52]} Bd6 {[%emt 0:00:02]} 8. Bxd6 {[%emt 0:00:01]} Qxd6 {[%emt 0:00:00]} 9. Nh4 {[%emt 0:00:06] [#] D35: Queen's Gambit Declined: Exchange Variation.} Be6 $5 $146 {[%emt 0:00:31][%mdl 8] An interesting novelty.} ({Predecessor:} 9... Bg6 10. h3 Nbd7 11. Nxg6 hxg6 12. Bd3 O-O 13. O-O Rfe8 14. Rb1 a5 15. a3 b5 16. Qc2 Nb6 {1-0 (65) Carlsen,M (2832)-So,W (2815) Chess.com INT 2017}) 10. Bd3 {[%emt 0:00:07]} Nbd7 {[%emt 0:00:14][%cal Bb8d7,Bd7b6,Bb6c8,Bc8d6][%mdl 32]} 11. h3 {[%emt 0:00:31] White has an edge.} Nb6 {[%emt 0:01:08]} 12. O-O {[%emt 0:00:20]} O-O {[%emt 0:00:07]} 13. Nf3 {[%emt 0:00:41]} Qe7 {[%emt 0:00:23]} 14. Qc2 {[%emt 0:02:41]} g6 {[%emt 0:00:40]} 15. Rae1 {[%emt 0:01:43]} Nc8 {[%emt 0:00:35]} 16. Ng5 {[%emt 0:01:37]} Nd6 {[%emt 0:00:33]} 17. Nxe6 {[%emt 0:00:08]} fxe6 {[%emt 0:01:05]} 18. e4 {[%emt 0:00:01]} dxe4 {[%emt 0:00:15]} (18... Nfxe4 {feels hotter.} 19. Nxe4 dxe4 20. Bxe4 Rad8) 19. Bxe4 {[%emt 0:00:51]} (19. Nxe4 {is interesting.} Nfxe4 20. Bxe4 Rae8 21. Bd3) 19... Nfxe4 {[%emt 0:00:39]} 20. Nxe4 {[%emt 0:00:02]} Nxe4 {[%emt 0:00:10]} 21. Rxe4 {[%emt 0:00:03]} Rad8 {[%emt 0:00:48]} 22. Rfe1 {[%emt 0:00:07]} Rf6 {[%emt 0:01:36]} 23. R1e3 {[%emt 0:00:07]} Rd5 {[%emt 0:00:32]} 24. a3 {[%emt 0:01:12]} Qd6 {[%emt 0:01:09]} 25. Qc3 {[%emt 0:00:34]} Rdf5 {[%emt 0:00:44]} 26. Re2 {[%emt 0:00:16]} Rf4 {[%emt 0:00:37]} 27. Rxf4 {[%emt 0:01:48]} Rxf4 $14 {[%emt 0:00:00][%mdl 4096] Endgame KQR-KQR} 28. Qb3 {[%emt 0:00:04][%csl LRb7,LRe6]} Rf7 {[%emt 0:00:52]} ({Don't take} 28... Rxd4 29. Rxe6 Qd5 30. Qe3 $16 (30. Re8+ Kf7 $11)) 29. Re4 {[%emt 0:00:33]} c5 {[%emt 0:03:02]} ({Black should try} 29... Kf8 $14) 30. Qxe6 $16 {[%emt 0:00:54]} (30. Qc4 {with more complications.} cxd4 31. Rxe6 Qf4 32. f3) 30... Qxe6 {[%emt 0:00:01]} 31. Rxe6 {[%emt 0:00:00]} cxd4 {[%emt 0:00:35] KR-KR} 32. Rd6 {[%emt 0:00:03][%cal Be6d6,Bd6d4,Bd4e4,Be4b4,Bb4b5,Bb5d5][%mdl 32] Prevents Rd7.} Rc7 {[%emt 0:00:01]} 33. Rxd4 {[%emt 0:00:01]} b6 {[%emt 0:01:07]} 34. g4 {[%emt 0:00:44]} Kf7 {[%emt 0:00:18]} 35. Kg2 {[%emt 0:00:08]} Ke6 {[%emt 0:00:01]} 36. Re4+ {[%emt 0:00:15]} Kf6 {[%emt 0:00:14]} 37. Kg3 {[%emt 0:01:09]} Rc2 {[%emt 0:00:09]} 38. Rb4 {[%emt 0:00:08]} g5 {[%emt 0:00:17]} ({Black should play} 38... h5) 39. Rb5 {[%emt 0:00:08]} Kg6 {[%emt 0:00:06]} 40. f3 {[%emt 0:00:02]} Rd2 {[%emt 0:00:08]} 41. h4 {[%emt 0:00:02]} h6 {[%emt 0:00:01]} 42. a4 $1 {[%emt 0:00:28]} Rc2 {[%emt 0:00:23]} 43. Rd5 {[%emt 0:01:53] Hoping for Rd6+.} Rxb2 $2 {[%emt 0:00:04][%mdl 8192] [#]} (43... gxh4+ $16 {is more resistant.} 44. Kxh4 Rh2+ 45. Kg3 Rxb2) 44. Rd6+ $1 $18 {[%emt 0:00:02]} Kg7 {[%emt 0:00:02]} 45. Rd7+ {[%emt 0:00:05]} Kh8 {[%emt 0:00:24] [#]} 46. Rxa7 {[%emt 0:00:25]} (46. Rd5 $142 $1) 46... Ra2 $16 {[%emt 0:00:07]} 47. Ra8+ {[%emt 0:00:46]} Kg7 {[%emt 0:00:02]} 48. Ra6 {[%emt 0:00:01]} Kh7 {[%emt 0:00:06]} 49. Ra7+ {[%emt 0:00:11]} (49. Rxb6 $16 {And now Rb7+ would win.} gxh4+ 50. Kxh4 Rxa4 51. Rb3 (51. Kh5 Ra5+ 52. Kh4 Kg7 $16)) 49... Kg8 {[%emt 0:00:11]} (49... Kh8 $11) 50. Rb7 {[%emt 0:00:02]} Rxa4 {[%emt 0:00:05]} 51. Rxb6 {[%emt 0:00:01]} Kg7 {[%emt 0:00:04]} 52. Rb7+ {[%emt 0:00:01]} Kf6 {[%emt 0:00:01]} 53. h5 {[%emt 0:00:42] Rh7 is the strong threat.} Ra6 {[%emt 0:00:01]} 54. Kf2 {[%emt 0:00:01]} Ra2+ {[%emt 0:00:17]} 55. Ke3 {[%emt 0:00:02] Strongly threatening Rh7.} Ra3+ {[%emt 0:00:01]} 56. Ke4 {[%emt 0:00:05] Threatens to win with Rh7.} Ra4+ {[%emt 0:00:01]} 57. Kd5 {[%emt 0:00:03] Black must now prevent Rh7.} Ra7 {[%emt 0:00:40]} 58. Rb6+ {[%emt 0:00:25]} Kg7 {[%emt 0:00:01]} 59. Rg6+ {[%emt 0:00:01]} Kh7 {[%emt 0:00:01]} 60. Rd6 {[%emt 0:00:01]} Rf7 {[%emt 0:00:15]} 61. Ke4 {[%emt 0:00:02]} Rf4+ {[%emt 0:00:00]} 62. Ke3 {[%emt 0:00:01]} Kg7 {[%emt 0:00:08]} 63. Rd7+ {[%emt 0:00:03]} Kg8 {[%emt 0:00:02]} 64. Rd4 {[%emt 0:00:01]} (64. Rb7 $16) 64... Rf6 {[%emt 0:00:07]} (64... Rxd4 $1 $11 {keeps the balance.} 65. Kxd4 Kf8) 65. Rd8+ {[%emt 0:00:15] White is better.} Kg7 {[%emt 0:00:01]} 66. Rd7+ {[%emt 0:00:00]} Kg8 {[%emt 0:00:02]} 67. Rd3 {[%emt 0:00:21]} Rf4 {[%emt 0:00:04] Blacks defense is rewarded with a draw.  Weighted Error Value: White=0.07 (flawless) /Black=0.15 (very precise)} 1/2-1/2

[Event "Julius Baer Generation Cup Prelims 2022"]
[Site "Online"]
[Date "2022.09.14"]
[Round "5.8"]
[White "Adhiban, B.."]
[Black "Le, Quang Liem"]
[Result "0-1"]
[ECO "D35"]
[WhiteElo "2603"]
[BlackElo "2728"]
[Annotator "TA"]
[PlyCount "132"]
[EventDate "2022.09.12"]
[EventType "tourn"]
[EventCountry "NET"]
[SourceTitle "playchess.com"]
[Source "ChessBase"]
[SourceQuality "1"]
[TimeControl "900+10"]

{[%evp 9,132,8,35,25,26,28,31,27,73,0,0,0,0,0,0,0,0,-123,-122,-114,-112,-117,-89,-95,-85,-91,-89,-82,-82,-77,-41,-50,-45,-71,-76,-67,-67,-67,-69,-159,-159,-159,-160,-191,-192,-192,-199,-199,-199,-199,-199,-225,-225,-213,-199,-229,-199,-199,-199,-280,-280,-286,-283,-280,-264,-333,-202,-360,-293,-356,-356,-356,-352,-344,-335,-332,-298,-294,-297,-550,-544,-505,-497,-656,-667,-605,-701,-700,-695,-590,-666,-701,-696,-685,-663,-525,-275,-655,-481,-740,-594,-571,-533,-749,-711,-731,-695,-828,-787,-1579,-1198,-4137,-4137,-4137,-3828,-29973,-29974,-29985,-29986,-29986,-29987,-29988,-29989,-29989,-29990]} 1. d4 {[%emt 0:00:00]} Nf6 {[%emt 0:00:00]} 2. c4 {[%emt 0:00:02]} e6 {[%emt 0:00:02]} 3. Nc3 {[%emt 0:00:00]} d5 {[%emt 0:00:08]} 4. cxd5 {[%emt 0:00:06]} exd5 {[%emt 0:00:00]} 5. Bg5 {[%emt 0:00:01]} Bb4 {[%emt 0:00:01]} 6. Qb3 {[%emt 0:01:33] D35: Queen's Gambit Declined: Exchange Variation.} c5 {[%emt 0:00:12]} 7. dxc5 {[%emt 0:00:01]} Nc6 {[%emt 0:00:02] aiming for ...d4.} 8. O-O-O {[%emt 0:00:22][%cal Rc3d5] White is slightly better.} Be6 {[%emt 0:00:07]} (8... Qa5 $11 {deserves consideration.}) 9. Bxf6 {[%emt 0:02:54]} (9. e4 $1 $16 {[%cal Re4d5]} d4 10. Bc4 Bxc4 11. Qxc4) 9... Qxf6 $11 {[%emt 0:00:07]} 10. Nxd5 {[%emt 0:01:29]} Qxf2 {[%emt 0:01:34] And now ...Bxd5 would win.} 11. Nc7+ {[%emt 0:01:32] Pair of Knights!} Ke7 {[%emt 0:00:04]} 12. Nxe6 {[%emt 0:00:00]} fxe6 {[%emt 0:00:02] [#]} 13. Qg3 $146 {[%emt 0:00:33]} (13. Kb1 $11 {remains equal.}) ({Predecessor:} 13. e3 Rad8 14. Bd3 Rd5 15. a3 Qxe3+ 16. Kb1 Rhd8 17. axb4 Rxd3 18. Rxd3 Rxd3 19. Qc4 Qe1+ {0-1 (19) Luessmann,T (1955)-Wagner,F (2126) Fuerth 2016}) 13... Qxg3 $1 $17 {[%emt 0:00:44] Chess con chili.} 14. hxg3 {[%emt 0:00:00]} Bxc5 {[%emt 0:01:23] Threatens to win with ...Rhd8.} 15. e4 {[%emt 0:00:03]} Rac8 {[%emt 0:00:52]} 16. Nf3 {[%emt 0:00:28]} Bd6 {[%emt 0:00:20]} 17. Rh3 {[%emt 0:00:39]} Ne5+ {[%emt 0:00:11]} 18. Kb1 {[%emt 0:00:02]} Ng4 {[%emt 0:00:01] ...Nf2 is the strong threat.} 19. Rh5 {[%emt 0:00:26]} g6 {[%emt 0:00:52]} 20. Rb5 {[%emt 0:01:23]} b6 {[%emt 0:00:05] Active counter play!} 21. e5 {[%emt 0:00:10] [#]} Bc5 {[%emt 0:00:34]} 22. Rb3 {[%emt 0:00:02]} Rhd8 $1 $36 {[%emt 0:00:22][%mdl 2048] White is under pressure.} 23. Rxd8 {[%emt 0:00:30]} Rxd8 {[%emt 0:00:00]} 24. Rd3 {[%emt 0:00:02] [#] Against Rd1+. White is now going downhill.} ({White should play} 24. Bb5 $15) 24... Rxd3 $1 {[%emt 0:00:32]} 25. Bxd3 {[%emt 0:00:00][%mdl 4096] Endgame KBN-KBN} Bf2 {[%emt 0:00:01]} 26. Ng5 {[%emt 0:02:39]} Bxg3 {[%emt 0:00:38]} 27. Ne4 {[%emt 0:00:01]} Bxe5 {[%emt 0:00:12]} 28. Be2 {[%emt 0:00:01]} Ne3 {[%emt 0:00:07]} 29. g4 {[%emt 0:00:01]} h6 {[%emt 0:00:30]} 30. b3 {[%emt 0:00:05]} Nd5 {[%emt 0:00:19]} 31. Kc2 {[%emt 0:00:02]} Nf4 {[%emt 0:00:56]} 32. Bd1 {[%emt 0:00:03]} h5 {[%emt 0:00:08]} 33. gxh5 {[%emt 0:00:01]} gxh5 {[%emt 0:00:00][%cal Bg6h5,Bh5h4,Bh4h3,Bh3h2][%mdl 32]} 34. Kd2 {[%emt 0:00:00]} (34. Nf2 $142) 34... h4 $19 {[%emt 0:00:18]} 35. Ke3 {[%emt 0:00:03]} h3 {[%emt 0:00:06]} 36. Bf3 {[%emt 0:00:02]} Nd5+ {[%emt 0:00:09]} 37. Kd2 {[%emt 0:00:02]} Nb4 {[%emt 0:00:24]} 38. a4 $2 {[%emt 0:00:01]} (38. Nf2) 38... Nc6 {[%emt 0:00:12]} 39. Bh1 {[%emt 0:00:13]} h2 {[%emt 0:00:14]} 40. Kd3 {[%emt 0:00:04]} Bd6 {[%emt 0:01:43]} 41. Kc4 {[%emt 0:00:10]} a6 {[%emt 0:00:15][%cal Ba7a6,Ba6a5][%mdl 32]} 42. Kd3 {[%emt 0:00:13]} Ne5+ {[%emt 0:00:10]} 43. Ke2 {[%emt 0:00:07]} a5 {[%emt 0:00:16] Strongly threatening ...Bc5.} 44. Nd2 $2 {[%emt 0:00:05]} (44. Nf2 {only move.}) 44... Bc5 {[%emt 0:00:14]} 45. Ne4 {[%emt 0:00:17]} Bg1 {[%emt 0:00:10]} 46. Kd2 {[%emt 0:00:11]} Kf7 {[%emt 0:00:06]} 47. Kc3 {[%emt 0:00:09]} Bc5 {[%emt 0:00:14] Inhibits b4.} 48. Kd2 {[%emt 0:00:35]} Kg6 {[%emt 0:00:08]} 49. Ke2 {[%emt 0:00:05]} Kf5 {[%emt 0:00:14]} 50. Ng3+ {[%emt 0:00:03]} Kg4 {[%emt 0:00:15]} 51. Ne4 {[%emt 0:00:01]} Kf4 {[%emt 0:00:11]} 52. Nf6 {[%emt 0:00:43]} Be7 {[%emt 0:00:12]} 53. Ne4 {[%emt 0:00:04]} (53. Nh5+ Kg5 54. Ng7) 53... Nc6 {[%emt 0:01:03]} 54. Kd3 {[%emt 0:00:08]} (54. Kf2 $142 Nd4 55. Nc3) 54... e5 {[%emt 0:00:40]} 55. Nc3 {[%emt 0:00:48]} Nb4+ {[%emt 0:00:01]} 56. Ke2 {[%emt 0:00:02]} Bc5 {[%emt 0:00:05]} 57. Ne4 {[%emt 0:00:13]} Nc2 {[%emt 0:00:27]} 58. Nd2 {[%emt 0:01:00]} Bb4 {[%emt 0:00:46]} 59. Nc4 {[%emt 0:00:39]} Nd4+ {[%emt 0:00:27]} 60. Kd3 {[%emt 0:00:02]} Nxb3 {[%emt 0:00:05]} 61. Nxb6 {[%emt 0:00:01]} e4+ {[%emt 0:00:01][%cal Be5e4,Be4e3][%mdl 32]} 62. Ke2 {[%emt 0:00:02]} Ke5 {[%emt 0:00:55] Black mates.} 63. Nd7+ {[%emt 0:01:30]} Kd4 {[%emt 0:00:11]} 64. Nb8 {[%emt 0:00:07]} Nc1+ {[%emt 0:00:05]} 65. Kd1 {[%emt 0:00:01] [#]} e3 $1 {[%emt 0:00:26]} 66. Nc6+ {[%emt 0:00:51]} Kc3 {[%emt 0:00:17] Weighted Error Value: White=0.33/Black=0.10 (very precise)} 0-1

[Event "Julius Baer Generation Cup Prelims 2022"]
[Site "Online"]
[Date "2022.09.14"]
[Round "6.1"]
[White "Giri, Anish"]
[Black "Le, Quang Liem"]
[Result "1/2-1/2"]
[ECO "C80"]
[WhiteElo "2764"]
[BlackElo "2728"]
[Annotator "TA"]
[PlyCount "120"]
[EventDate "2022.09.12"]
[EventType "tourn"]
[EventCountry "NET"]
[SourceTitle "playchess.com"]
[Source "ChessBase"]
[SourceQuality "1"]
[TimeControl "900+10"]

{[%evp 24,120,38,30,25,25,26,32,30,31,25,26,149,143,137,150,147,149,144,142,183,33,54,8,6,10,12,0,0,0,2,2,3,0,11,11,11,2,11,2,2,0,11,11,28,28,28,28,29,28,29,31,39,39,39,39,39,39,39,0,39,39,39,39,39,39,39,39,39,39,54,8,8,0,0,0,0,0,0,0,0,0,0,0,0,0,0,0,0,0,0,0,0,0,0,0,0,0,0]} 1. e4 {[%emt 0:00:00]} e5 {[%emt 0:00:00]} 2. Nf3 {[%emt 0:00:01]} Nc6 {[%emt 0:00:01]} 3. Bb5 {[%emt 0:00:02][%cal Bf1b5,Bb5a4,Ba4b3][%mdl 32]} a6 {[%emt 0:00:01]} 4. Ba4 {[%emt 0:00:01]} Nf6 {[%emt 0:00:02]} 5. O-O {[%emt 0:00:01]} Nxe4 {[%emt 0:00:01]} 6. d4 {[%emt 0:00:03]} b5 {[%emt 0:00:01]} 7. Bb3 {[%emt 0:00:01]} d5 {[%emt 0:00:01]} 8. dxe5 {[%emt 0:00:01]} Be6 {[%emt 0:00:02]} 9. Nbd2 {[%emt 0:00:36]} Nc5 {[%emt 0:00:03]} 10. c3 {[%emt 0:00:00]} d4 {[%emt 0:00:01]} 11. Bxe6 {[%emt 0:00:08]} Nxe6 {[%emt 0:00:00]} 12. cxd4 {[%emt 0:00:02]} Ncxd4 {[%emt 0:00:00]} 13. a4 {[%emt 0:00:01]} Bb4 {[%emt 0:00:02] C80: Open Ruy Lopez: Sidelines and 9 Nbd2.} 14. axb5 {[%emt 0:00:01]} Nxb5 {[%emt 0:00:01]} (14... axb5 $2 15. Rxa8 Qxa8 16. Nxd4 Nxd4 17. Qg4 $16) 15. Qa4 {[%emt 0:00:00]} c5 {[%emt 0:00:03] White is slightly better.} 16. Nc4 {[%emt 0:00:19] [#] Black must now prevent Rd1.} O-O {[%emt 0:00:04]} 17. Be3 {[%emt 0:00:03] [#]} Nbd4 $146 {[%emt 0:03:12]} (17... Rb8 $11 {keeps the balance.}) ({Predecessor:} 17... Rb8 18. Qd1 Qc8 19. Qc2 Qc6 20. Rfd1 Rfd8 21. Ng5 Nxg5 22. Bxg5 Rxd1+ 23. Rxd1 Nd4 {½-½ (30) Simmelink,J (2447)-Kovacs,A (2409) LSS email 2014}) 18. Bxd4 $16 {[%emt 0:01:05]} Nxd4 {[%emt 0:00:00]} 19. Nxd4 {[%emt 0:00:04]} Qxd4 {[%emt 0:00:01] [#]} 20. Qc2 {[%emt 0:00:05]} a5 {[%emt 0:01:27]} 21. Rad1 {[%emt 0:01:13]} Qg4 {[%emt 0:00:04]} 22. b3 {[%emt 0:01:01]} (22. f4 $18) 22... Qg6 $14 {[%emt 0:00:52]} 23. Qxg6 {[%emt 0:01:17]} (23. Qe2 $14) 23... hxg6 $11 {[%emt 0:00:00]} 24. Rd3 {[%emt 0:00:08]} Rfd8 {[%emt 0:04:43]} 25. Rfd1 {[%emt 0:00:35]} Rxd3 {[%emt 0:00:15]} 26. Rxd3 {[%emt 0:00:00][%mdl 4096] Endgame KRB-KRN} a4 {[%emt 0:00:01]} 27. bxa4 {[%emt 0:00:09]} Rxa4 {[%emt 0:00:00] ( -> ...Ra1+)} 28. g3 {[%emt 0:03:16]} Ba5 {[%emt 0:00:19] Inhibits Rd8+.} 29. Nxa5 {[%emt 0:00:29]} Rxa5 {[%emt 0:00:00] KR-KR} 30. Rd8+ {[%emt 0:00:04]} Kh7 {[%emt 0:00:02]} 31. Rd7 {[%emt 0:00:18]} Kg8 {[%emt 0:00:30]} 32. Rd8+ {[%emt 0:00:21]} Kh7 {[%emt 0:00:01]} 33. Rf8 {[%emt 0:00:06]} c4 {[%emt 0:00:23]} 34. Rxf7 {[%emt 0:01:19]} Rxe5 {[%emt 0:00:44]} 35. Rc7 {[%emt 0:00:02]} Re1+ {[%emt 0:00:15]} 36. Kg2 {[%emt 0:00:03]} Rc1 {[%emt 0:00:00]} 37. h4 {[%emt 0:00:26]} Kg8 {[%emt 0:01:15]} 38. Kf3 {[%emt 0:01:03]} Rc2 {[%emt 0:00:26]} 39. Ke3 {[%emt 0:00:45]} c3 {[%emt 0:00:07]} 40. Kf3 {[%emt 0:00:58]} Kf8 {[%emt 0:00:14]} 41. Ke3 {[%emt 0:00:27]} Kg8 {[%emt 0:00:02]} 42. g4 {[%emt 0:01:15]} Kf8 {[%emt 0:00:52]} 43. Kf3 {[%emt 0:00:48]} Kg8 {[%emt 0:00:08]} 44. Kg3 {[%emt 0:00:14]} Kh7 {[%emt 0:02:14]} 45. Rc6 {[%emt 0:00:02]} Rc1 {[%emt 0:00:46]} 46. Kf4 {[%emt 0:00:05]} Rh1 {[%emt 0:00:09]} 47. Kg5 {[%emt 0:00:29]} (47. Rxc3 $14 Rxh4 48. Kg5) 47... Rh3 {[%emt 0:00:10] The position is equal.} 48. Rxg6 {[%emt 0:01:45]} Rxh4 {[%emt 0:00:04]} 49. Rc6 {[%emt 0:00:01]} Rh2 {[%emt 0:00:01]} 50. f4 {[%emt 0:00:31][%cal Bf2f4,Bf4f5][%mdl 32]} c2 {[%emt 0:00:04]} 51. Rc8 {[%emt 0:00:14]} Rd2 {[%emt 0:00:13]} 52. f5 {[%emt 0:00:03]} Rf2 {[%emt 0:00:40]} 53. Rc7 {[%emt 0:00:05]} Rd2 {[%emt 0:00:32]} 54. f6 {[%emt 0:00:12]} Rd5+ {[%emt 0:00:08]} 55. Kh4 {[%emt 0:00:48]} c1=Q {[%emt 0:00:03]} 56. Rxc1 {[%emt 0:00:06]} gxf6 {[%emt 0:00:01]} 57. Rf1 {[%emt 0:00:04]} Kg6 {[%emt 0:00:02]} 58. Rf4 {[%emt 0:00:02]} f5 {[%emt 0:00:05]} 59. gxf5+ {[%emt 0:00:00]} Rxf5 {[%emt 0:00:01]} 60. Rxf5 {[%emt 0:00:00]} Kxf5 {[%emt 0:00:01] Weighted Error Value: White=0.10 (very precise) /Black=0.08 (flawless)} 1/2-1/2

[Event "Julius Baer Generation Cup Prelims 2022"]
[Site "Online"]
[Date "2022.09.14"]
[Round "6.2"]
[White "Navara, David"]
[Black "Adhiban, B.."]
[Result "1/2-1/2"]
[ECO "A88"]
[WhiteElo "2681"]
[BlackElo "2603"]
[Annotator "TA"]
[PlyCount "73"]
[EventDate "2022.09.12"]
[EventType "tourn"]
[EventCountry "NET"]
[SourceTitle "playchess.com"]
[Source "ChessBase"]
[SourceQuality "1"]
[TimeControl "900+10"]

{[%evp 19,73,8,46,52,46,35,53,58,55,42,57,0,0,0,0,0,12,-18,-18,-21,-11,-11,-12,-12,-10,-6,0,-37,-29,-78,-78,-78,-78,-93,0,0,0,0,0,0,0,0,0,0,0,0,0,0,0,0,0,0,0,0,0,0]} 1. d4 {[%emt 0:00:00]} f5 {[%emt 0:00:00]} 2. Nf3 {[%emt 0:00:02]} Nf6 {[%emt 0:00:02]} 3. g3 {[%emt 0:00:01]} g6 {[%emt 0:00:01]} 4. Bg2 {[%emt 0:00:01]} Bg7 {[%emt 0:00:00]} 5. O-O {[%emt 0:00:33]} O-O {[%emt 0:00:01]} 6. c4 {[%emt 0:00:14]} d6 {[%emt 0:00:04]} 7. Nc3 {[%emt 0:00:01]} c6 {[%emt 0:00:01]} 8. d5 {[%emt 0:00:11]} e5 {[%emt 0:00:01]} 9. dxe6 {[%emt 0:00:01]} Bxe6 {[%emt 0:00:01]} 10. b3 {[%emt 0:00:10]} Ne4 {[%emt 0:00:03] CPLX 2.1 38 (Nb8-a6) (=38)} 11. Nxe4 {[%emt 0:00:13] EASY. A88: Dutch Defence: Leningrad System: 5 Nf3 0-0 6 0-0 d6 7 Nc3 c6.} fxe4 {[%emt 0:00:01] RECAPT} 12. Nd4 {[%emt 0:00:32] CPLX 2.8} Qd7 $5 {[%emt 0:00:03][%mdl 4] CPLX 3.1 18 (Be6-g4) (=19) Exploring less charted territory.} 13. Bxe4 {[%emt 0:04:00] BESTDEEP. White is slightly better.} Bh3 {[%emt 0:00:04] EASY} 14. Re1 {[%emt 0:00:41][%cal Bf1e1,Be1d1,Bd1d6][%mdl 32] BESTDEEP} Qf7 {[%emt 0:00:02] [#] CPLX 3.8 15 (Nb8-a6) (=14)} 15. Be3 $146 {[%emt 0:00:59] CPLX 4.0 57 (Bc1-f4) (=11)} (15. Bf4 $14) ({Predecessor:} 15. f4 Na6 16. e3 Rfe8 17. Bf3 Rad8 18. Ba3 Nc7 19. Rc1 d5 20. c5 Re7 21. Bb2 {½-½ (35) Civitillo,A (2416)-Morales,O (2302) ICCF email 2018}) 15... Nd7 $11 {[%emt 0:00:02] CPLX 3.8} 16. Nf3 {[%emt 0:00:42] CPLX 3.8 0 (Qd1-d2) (=10)} Bxa1 {[%emt 0:00:51] CPLX 3.5} 17. Qxa1 {[%emt 0:00:43] MISS-Nf3-g5 0 (Nf3-g5) (=8)} Bf5 {[%emt 0:00:16] CPLX 4.3 12 (Qf7-f6) (=10)} 18. Bxf5 {[%emt 0:00:27] CPLX 3.5 30 (Nf3-d2) (=11)} Qxf5 {[%emt 0:00:01] RECAPT} 19. Rd1 {[%emt 0:00:15] CPLX 3.4} Ne5 {[%emt 0:00:10] CPLX 3.5 10 (Qf5-f6) (=9)} 20. Rxd6 {[%emt 0:01:54] CPLX 3.1} Nxf3+ {[%emt 0:00:06] CPLX 3.2} 21. exf3 {[%emt 0:00:00] RECAPT} Qxf3 {[%emt 0:00:06] RECAPT} 22. Qd4 {[%emt 0:00:37] Black must now prevent Bh6. CPLX 4.8} ({Of course not} 22. Rd7 Rf7 23. Qd1 Qxd1+ 24. Rxd1 Rc8 $17) 22... Rae8 {[%emt 0:00:51] MISS-Rf8-f7 6 (Rf8-f7) (=8)} 23. Rd7 {[%emt 0:01:00][%csl Gd7][%cal Rd4g7] Dancing on a razor blade. CPLX 5.1 37 (Qd4xa7) (=10)} Rf7 {[%emt 0:00:05] Against Qg7+. EASY} 24. h4 {[%emt 0:01:18] CPLX 5.1 49 (Rd7-d6) (=12)} (24. Rd6 $11) 24... Rxd7 $17 {[%emt 0:01:29] BESTDEEP} 25. Qxd7 {[%emt 0:00:00][%mdl 4096] Endgame [#] KQR-KQB. RECAPT} Qf7 {[%emt 0:00:02] CPLX 4.9} 26. Qd4 {[%emt 0:00:52] CPLX 3.1} Qg7 {[%emt 0:06:01] CPLX 2.8 93 (a7-a6) (=11)} (26... a6 $17) 27. Qxa7 $11 {[%emt 0:00:23] EASY. The position is equal.} Rd8 {[%emt 0:00:34] CPLX 2.5 0 (Qg7-f7) (=11)} 28. Bg5 {[%emt 0:00:58] CPLX 2.5 0 (Kg1-h2) (=10)} Rd1+ {[%emt 0:01:41] CPLX 2.8} 29. Kh2 {[%emt 0:00:02] MISS-Kg1-g2 0 (Kg1-g2) (=9)} h6 {[%emt 0:00:06] CPLX 3.7 0 (Qg7-f7) (=10)} 30. Be3 {[%emt 0:00:01] CPLX 3.9} Qe7 {[%emt 0:01:29] [#] ...Qe4 is the strong threat. CPLX 3.6 0 (g6-g5) (=9)} 31. Qb8+ {[%emt 0:00:21] CPLX 3.9} Qf8 {[%emt 0:04:05] BESTDEEP} 32. Qxb7 {[%emt 0:00:28] CPLX 3.7} Qf3 {[%emt 0:00:02][%csl Gd1][%cal Rf3h1] EASY} 33. Qb8+ {[%emt 0:00:01] CPLX 5.5 0 (Qb7-c8) (=8)} Kh7 {[%emt 0:00:17][%csl Gd1][%cal Rf3h1] CPLX 4.9 0 (Kg8-f7) (=8)} 34. Qc7+ {[%emt 0:00:04] CPLX 5.3 0 (Qb8-a7) (=7)} Kg8 {[%emt 0:00:01][%csl Gf3][%cal Rd1h1] EASY} 35. Qb8+ {[%emt 0:00:02] CPLX 5.5 0 (Qc7-c8) (=7)} Kh7 {[%emt 0:00:02][%csl Gf3][%cal Rd1h1] CPLX 4.9 0 (Kg8-f7) (=7)} 36. Qc7+ {[%emt 0:00:01] CPLX 5.3 0 (Qb8-a7) (=7)} Kg8 {[%emt 0:00:01][%csl Gf3][%cal Rd1h1] EASY} 37. Qb8+ {[%emt 0:00:01] Weighted Error Value: White=0.09 (flawless) /Black=0.08 (flawless)} 1/2-1/2